fUST/lending_fUST_20240826
["ID","MTS","AMOUNT","RATE_DAILY","PERIOD"]
[336059956,1724683855221,-500.0,0.00012335,2]
[336059957,1724683855232,-880.6,0.00012335,2]
[336059958,1724683855242,-500.0,0.00012335,2]
[336059959,1724683855252,-651.58,0.00012335,2]
[336059960,1724683855262,-500.0,0.00012335,2]
[336059961,1724683855271,-1051.23,0.00012335,2]
[336059962,1724683855281,-500.0,0.00012335,2]
[336059963,1724683855290,-500.0,0.00012335,2]
[336059964,1724683855301,-571.37,0.00012335,2]
[336059965,1724683855310,-500.0,0.00012335,2]
[336059966,1724683855320,-500.0,0.00012335,2]
[336059967,1724683855329,-500.0,0.00012335,2]
[336059968,1724683855341,-1259.84,0.00012335,2]
[336059969,1724683855350,-1265.69,0.00012335,2]
[336059970,1724683855360,-500.0,0.00012335,2]
[336059971,1724683855369,-603.95,0.00012335,2]
[336059972,1724683855378,-500.0,0.00012335,2]
[336059973,1724683855388,-544.43,0.00012335,2]
[336059974,1724683855397,-500.0,0.00012335,2]
[336059975,1724683855407,-465.42153719,0.00012335,2]
[336059976,1724683855416,-901.68,0.00012335,2]
[336059977,1724683855426,-500.0,0.00012335,2]
[336059978,1724683855435,-823.22,0.00012335,2]
[336059979,1724683855445,-2656.92,0.00012335,2]
[336059980,1724683855454,-500.0,0.00012336,2]
[336059981,1724683855464,-563.68,0.00012336,2]
[336059982,1724683855474,-722.17,0.00012336,2]
[336059983,1724683855483,-500.0,0.00012336,2]
[336059984,1724683855493,-810.1,0.00012336,2]
[336059985,1724683855502,-616.92,0.00012336,2]
[336059986,1724683855512,-500.0,0.00012336,2]
[336059987,1724683855521,-725.16,0.00012336,2]
[336059988,1724683855531,-500.0,0.00012336,2]
[336059989,1724683855540,-500.0,0.00012336,2]
[336059990,1724683855549,-698.05,0.00012336,2]
[336059991,1724683855558,-500.0,0.00012336,2]
[336059992,1724683855569,-527.47,0.00012336,2]
[336059993,1724683855578,-660.48,0.00012336,2]
[336059994,1724683855588,-500.0,0.00012336,2]
[336059995,1724683855597,-878.7,0.00012336,2]
[336059996,1724683855606,-500.0,0.00012336,2]
[336059997,1724683855616,-578.92,0.00012336,2]
[336059998,1724683855625,-500.0,0.00012336,2]
[336059999,1724683855634,-968.71,0.00012336,2]
[336060000,1724683855643,-265.89654311,0.00012336,2]
[336060001,1724683855652,-948.05,0.00012336,2]
[336060002,1724683855661,-500.0,0.00012336,2]
[336060003,1724683855670,-1034.7,0.00012336,2]
[336060004,1724683855679,-803.26,0.00012336,2]
[336060005,1724683855688,-500.0,0.00012336,2]
[336060006,1724683855697,-909.82,0.00012336,2]
[336060007,1724683855708,-500.0,0.00012336,2]
[336060008,1724683855717,-510.65,0.00012336,2]
[336060009,1724683855726,-500.0,0.00012336,2]
[336060010,1724683855736,-571.43,0.00012336,2]
[336060011,1724683855745,-500.0,0.00012337,2]
[336060012,1724683855754,-500.0,0.00012337,2]
[336060013,1724683855764,-500.0,0.00012337,2]
[336060014,1724683855773,-500.0,0.00012337,2]
[336060015,1724683855782,-500.0,0.00012337,2]
[336060016,1724683855791,-500.0,0.00012337,2]
[336060017,1724683855800,-500.0,0.00012337,2]
[336060018,1724683855810,-500.0,0.00012337,2]
[336060019,1724683855819,-500.0,0.00012337,2]
[336060020,1724683855828,-500.0,0.00012337,2]
[336060021,1724683855838,-500.0,0.00012337,2]
[336060022,1724683855857,-986.49,0.00012337,2]
[336060023,1724683855867,-500.0,0.00012337,2]
[336060024,1724683855875,-500.0,0.00012337,2]
[336060025,1724683855885,-500.0,0.00012337,2]
[336060026,1724683855894,-500.0,0.00012337,2]
[336060027,1724683855903,-297.76240184,0.00012337,2]
[336060028,1724683855912,-500.0,0.00012337,2]
[336060029,1724683855922,-500.0,0.00012337,2]
[336060030,1724683855931,-500.0,0.00012337,2]
[336060031,1724683855940,-500.0,0.00012337,2]
[336060032,1724683855949,-912.43,0.00012337,2]
[336060033,1724683855958,-500.0,0.00012337,2]
[336060034,1724683855967,-612.67,0.00012337,2]
[336060035,1724683855977,-500.0,0.00012337,2]
[336060036,1724683855986,-500.0,0.00012337,2]
[336060037,1724683855995,-500.0,0.00012337,2]
[336060038,1724683856004,-500.0,0.00012337,2]
[336060039,1724683856013,-500.0,0.00012337,2]
[336060040,1724683856022,-533.70271463,0.00012337,2]
[336060041,1724683856032,-634.45,0.00012337,2]
[336060042,1724683856041,-500.0,0.00012337,2]
[336060043,1724683856050,-506.2,0.00012337,2]
[336060044,1724683856059,-500.0,0.00012337,2]
[336060045,1724683856068,-500.0,0.00012337,2]
[336060046,1724683856077,-500.0,0.00012337,2]
[336060047,1724683856088,-534.77,0.00012337,2]
[336060048,1724683856100,-796.24,0.00012337,2]
[336060049,1724683856109,-500.0,0.00012337,2]
[336060050,1724683856118,-500.0,0.00012337,2]
[336060051,1724683856127,-500.0,0.00012337,2]
[336060052,1724683856137,-1055.34,0.00012337,2]
[336060053,1724683856146,-667.58,0.00012337,2]
[336060054,1724683856159,-564.59,0.00012337,2]
[336060055,1724683856168,-500.0,0.00012337,2]
[336060056,1724683856177,-500.0,0.00012337,2]
[336060057,1724683856187,-500.0,0.00012337,2]
[336060058,1724683856196,-648.51,0.00012337,2]
[336060059,1724683856206,-500.0,0.00012337,2]
[336060060,1724683856365,-500.0,0.00012337,2]
[336060061,1724683856375,-1018.16,0.00012337,2]
[336060062,1724683856384,-801.7,0.00012337,2]
[336060063,1724683856394,-571.24,0.00012337,2]
[336060064,1724683856403,-597.01,0.00012337,2]
[336060065,1724683856413,-693.59,0.00012337,2]
[336060066,1724683856422,-500.0,0.00012337,2]
[336060067,1724683856431,-500.0,0.00012337,2]
[336060068,1724683856440,-659.57,0.00012337,2]
[336060069,1724683856450,-851.78,0.00012337,2]
[336060070,1724683856459,-569.92,0.00012337,2]
[336060071,1724683856468,-500.0,0.00012337,2]
[336060072,1724683856478,-798.87,0.00012337,2]
[336060073,1724683856487,-500.0,0.00012337,2]
[336060074,1724683856496,-500.0,0.00012337,2]
[336060075,1724683856506,-605.54,0.00012337,2]
[336060076,1724683856515,-500.0,0.00012337,2]
[336060077,1724683856524,-556.37,0.00012337,2]
[336060078,1724683856534,-590.44,0.00012337,2]
[336060079,1724683856544,-556.97,0.00012337,2]
[336060080,1724683856553,-526.66,0.00012337,2]
[336060081,1724683856563,-500.0,0.00012337,2]
[336060082,1724683856572,-500.0,0.00012337,2]
[336060083,1724683856581,-500.0,0.00012337,2]
[336060084,1724683856591,-515.44,0.00012337,2]
[336060085,1724683856601,-500.0,0.00012337,2]
[336060086,1724683856611,-500.0,0.00012337,2]
[336060087,1724683856620,-555.75,0.00012337,2]
[336060088,1724683856630,-501.02,0.00012337,2]
[336060089,1724683856639,-500.0,0.00012337,2]
[336060090,1724683856649,-500.0,0.00012337,2]
[336060091,1724683856658,-576.61,0.00012337,2]
[336060092,1724683856667,-671.37,0.00012337,2]
[336060093,1724683856676,-500.0,0.00012337,2]
[336060094,1724683856686,-937.68,0.00012337,2]
[336060095,1724683856695,-500.0,0.00012337,2]
[336060096,1724683856704,-500.0,0.00012337,2]
[336060097,1724683856713,-500.0,0.00012337,2]
[336060098,1724683856722,-500.0,0.00012337,2]
[336060099,1724683856731,-875.15,0.00012337,2]
[336060100,1724683856740,-560.77,0.00012337,2]
[336060101,1724683856750,-551.64,0.00012337,2]
[336060102,1724683856759,-500.0,0.00012337,2]
[336060103,1724683856767,-500.0,0.00012337,2]
[336060104,1724683856776,-688.56,0.00012337,2]
[336060105,1724683856785,-602.82,0.00012337,2]
[336060106,1724683856795,-361.3812643,0.00012337,2]
[336060107,1724683856804,-521.04,0.00012337,2]
[336060108,1724683856814,-500.0,0.00012337,2]
[336060109,1724683856824,-500.0,0.00012337,2]
[336060110,1724683856833,-500.0,0.00012337,2]
[336060111,1724683856842,-500.0,0.00012337,2]
[336060112,1724683856852,-500.0,0.00012337,2]
[336060113,1724683856861,-500.0,0.00012337,2]
[336060114,1724683856870,-500.0,0.00012337,2]
[336060115,1724683856880,-500.0,0.00012337,2]
[336060116,1724683856889,-500.0,0.00012337,2]
[336060117,1724683856898,-500.0,0.00012337,2]
[336060118,1724683856907,-568.47,0.00012337,2]
[336060119,1724683856916,-500.0,0.00012337,2]
[336060120,1724683856926,-500.0,0.00012337,2]
[336060121,1724683856935,-717.04,0.00012337,2]
[336060122,1724683856944,-500.0,0.00012337,2]
[336060123,1724683856955,-500.0,0.00012337,2]
[336060124,1724683856964,-500.0,0.00012337,2]
[336060125,1724683856974,-603.73,0.00012337,2]
[336060126,1724683856983,-500.0,0.00012337,2]
[336060127,1724683856993,-575.68,0.00012337,2]
[336060128,1724683857003,-500.0,0.00012337,2]
[336060129,1724683857012,-500.0,0.00012337,2]
[336060130,1724683857021,-500.0,0.00012337,2]
[336060131,1724683857032,-500.0,0.00012337,2]
[336060132,1724683857042,-500.0,0.00012337,2]
[336060133,1724683857051,-500.0,0.00012337,2]
[336060134,1724683857061,-565.23,0.00012337,2]
[336060135,1724683857071,-725.39,0.00012337,2]
[336060136,1724683857080,-500.0,0.00012337,2]
[336060137,1724683857090,-567.2,0.00012337,2]
[336060138,1724683857100,-500.0,0.00012337,2]
[336060139,1724683857110,-500.0,0.00012337,2]
[336060140,1724683857120,-835.77,0.00012337,2]
[336060141,1724683857131,-500.0,0.00012337,2]
[336060142,1724683857140,-500.0,0.00012337,2]
[336060143,1724683857152,-530.62,0.00012337,2]
[336060144,1724683857165,-537.49,0.00012337,2]
[336060145,1724683857174,-500.0,0.00012337,2]
[336060146,1724683857185,-732.91,0.00012337,2]
[336060147,1724683857196,-500.0,0.00012337,2]
[336060148,1724683857206,-743.84,0.00012337,2]
[336060149,1724683857217,-516.57926988,0.00012337,2]
[336060150,1724683857229,-771.69,0.00012337,2]
[336060151,1724683857241,-500.0,0.00012337,2]
[336060152,1724683857252,-500.0,0.00012337,2]
[336060153,1724683857264,-813.79,0.00012337,2]
[336060154,1724683857274,-500.0,0.00012337,2]
[336060155,1724683857283,-591.55,0.00012337,2]
[336060156,1724683857293,-534.86,0.00012337,2]
[336060157,1724683857302,-1307.79,0.00012337,2]
[336060158,1724683857311,-905.98,0.00012337,2]
[336060159,1724683857321,-577.78,0.00012337,2]
[336060160,1724683857331,-753.43,0.00012337,2]
[336060161,1724683857340,-910.6,0.00012337,2]
[336060162,1724683857349,-500.0,0.00012337,2]
[336060163,1724683857359,-500.0,0.00012337,2]
[336060164,1724683857368,-500.0,0.00012338,2]
[336060165,1724683857377,-500.0,0.00012338,2]
[336060166,1724683857387,-500.0,0.00012338,2]
[336060167,1724683857396,-736.46,0.00012338,2]
[336060168,1724683857405,-703.27,0.00012338,2]
[336060169,1724683857415,-888.47,0.00012338,2]
[336060170,1724683857424,-597.66,0.00012338,2]
[336060171,1724683857433,-750.02,0.00012338,2]
[336060172,1724683857443,-600.88,0.00012338,2]
[336060173,1724683857454,-500.0,0.00012338,2]
[336060174,1724683857463,-917.73,0.00012338,2]
[336060175,1724683857472,-500.0,0.00012338,2]
[336060176,1724683857483,-1318.79,0.00012338,2]
[336060177,1724683857492,-500.0,0.00012338,2]
[336060178,1724683857501,-500.0,0.00012338,2]
[336060179,1724683857512,-500.0,0.00012338,2]
[336060180,1724683857522,-500.0,0.00012338,2]
[336060181,1724683857531,-500.0,0.00012338,2]
[336060182,1724683857540,-500.0,0.00012338,2]
[336060183,1724683857549,-500.0,0.00012338,2]
[336060184,1724683857558,-500.0,0.00012338,2]
[336060185,1724683857567,-500.0,0.00012338,2]
[336060186,1724683857576,-500.0,0.00012338,2]
[336060187,1724683857585,-741.14,0.00012338,2]
[336060188,1724683857595,-152.01454984,0.00012338,2]
[336060189,1724683857604,-644.67,0.00012338,2]
[336060190,1724683857614,-500.0,0.00012338,2]
[336060191,1724683857623,-500.0,0.00012338,2]
[336060192,1724683857634,-257.15024005,0.00012356,2]
[336060193,1724683857646,-1843.27713185,0.00012356,2]
[336060194,1724683857657,-468.26891435,0.00012359,2]
[336060195,1724683857667,-1000.0,0.00012364,2]
[336060196,1724683857676,-1000.0,0.00012369,2]
[336060197,1724683857686,-158.29097882,0.0001237,2]
[336060198,1724683857695,-1000.0,0.0001239,2]
[336060199,1724683857705,-1000.0,0.00012393,2]
[336060200,1724683857714,-1000.0,0.00012394,2]
[336060201,1724683857723,-1000.0,0.00012415,2]
[336060202,1724683857733,-1000.0,0.00012421,2]
[336060203,1724683857742,-1067.83892932,0.00012421,2]
[336060204,1724683857752,-1000.0,0.00012445,2]
[336060205,1724683857762,-1000.0,0.00012451,2]
[336060206,1724683857772,-1000.0,0.00012465,2]
[336060207,1724683857782,-151.0,0.00012465,2]
[336060208,1724683857791,-278.38266,0.00012465,2]
[336060209,1724683857801,-278.38266,0.00012465,2]
[336060210,1724683857810,-151.0,0.00012465,2]
[336060211,1724683857819,-344.957951,0.00012465,2]
[336060212,1724683857828,-344.957951,0.00012465,2]
[336060213,1724683857838,-151.0,0.00012465,2]
[336060214,1724683857848,-407.64620805,0.0001249,2]
[336060215,1724683857858,-11950.1863971,0.0001249,2]
[336060216,1724683857868,-1000.0,0.00012498,2]
[336060217,1724683857878,-190.80297655,0.000125,2]
[336060218,1724683857887,-1000.0,0.000125,2]
[336060219,1724683857896,-1000.0,0.00012505,2]
[336060220,1724683857905,-797.985286,0.00012505,2]
[336060221,1724683857914,-797.985286,0.00012505,2]
[336060222,1724683857924,-152.663038,0.00012505,2]
[336060223,1724683857933,-152.663038,0.00012505,2]
[336060224,1724683857942,-151.0,0.00012505,2]
[336060225,1724683857951,-277.083759,0.00012505,2]
[336060226,1724683857961,-277.083759,0.00012505,2]
[336060227,1724683857970,-151.0,0.0001251,2]
[336060228,1724683857979,-151.0,0.0001251,2]
[336060229,1724683857989,-1524.013689,0.0001251,2]
[336060230,1724683857999,-1524.013689,0.0001251,2]
[336060231,1724683858008,-396.79346,0.0001251,2]
[336060232,1724683858018,-396.79346,0.0001251,2]
[336060233,1724683858028,-181.885244,0.0001251,2]
[336060234,1724683858040,-181.885244,0.0001251,2]
[336060235,1724683858050,-1788.730655,0.0001251,2]
[336060236,1724683858060,-1788.730655,0.0001251,2]
[336060237,1724683858070,-2073.785835,0.0001251,2]
[336060238,1724683858079,-2073.785835,0.0001251,2]
[336060239,1724683858089,-12801.86359117,0.0001251,2]
[336060240,1724683858098,-151.0,0.00012512,2]
[336060241,1724683858108,-153.702674,0.00012512,2]
[336060242,1724683858119,-153.702674,0.00012512,2]
[336060243,1724683858130,-279.276805,0.00012512,2]
[336060244,1724683858140,-279.276805,0.00012512,2]
[336060245,1724683858154,-867.27712,0.00012512,2]
[336060246,1724683858165,-867.27712,0.00012512,2]
[336060247,1724683858176,-490.089193,0.00012512,2]
[336060248,1724683858185,-490.089193,0.00012512,2]
[336060249,1724683858195,-3000.0,0.00012512,2]
[336060250,1724683858204,-1271.652334,0.00012516,2]
[336060251,1724683858213,-1490.564264,0.00012516,2]
[336060252,1724683858223,-1271.652334,0.00012516,2]
[336060253,1724683858233,-1490.564264,0.00012516,2]
[336060254,1724683858242,-319.552051,0.00012516,2]
[336060255,1724683858252,-319.552051,0.00012516,2]
[336060256,1724683858261,-1338.079482,0.00012516,2]
[336060257,1724683858271,-1338.079482,0.00012516,2]
[336060258,1724683858279,-600.0,0.00012517,2]
[336060259,1724683858289,-600.0,0.00012517,2]
[336060260,1724683858298,-934.47116226,0.00012551,2]
[336060261,1724683858307,-160.52328625,0.00012551,2]
[336060262,1724683858316,-811.33770474,0.00012551,2]
[336060263,1724683858325,-500.0,0.00012608,2]
[336060264,1724683858335,-573.81,0.00012608,2]
[336060265,1724683858345,-500.0,0.00012608,2]
[336060266,1724683858355,-500.0,0.00012608,2]
[336060267,1724683858364,-520.89,0.00012608,2]
[336060268,1724683858373,-500.0,0.00012608,2]
[336060269,1724683858382,-500.0,0.00012608,2]
[336060270,1724683858391,-500.0,0.00012608,2]
[336060271,1724683858400,-638.72818631,0.00012608,2]
[336060272,1724683858410,-500.0,0.00012608,2]
[336060273,1724683858419,-708.09,0.00012608,2]
[336060274,1724683858429,-980.92,0.00012608,2]
[336060275,1724683858438,-2411.27,0.00012608,2]
[336060276,1724683858448,-500.0,0.00012608,2]
[336060277,1724683858457,-500.0,0.00012608,2]
[336060278,1724683858467,-826.02,0.00012608,2]
[336060279,1724683858476,-500.0,0.00012608,2]
[336060280,1724683858486,-678.88366723,0.00012608,2]
[336060281,1724683859451,-500.0,0.00011512,2]
[336060282,1724683859461,-500.0,0.00011513,2]
[336060283,1724683859471,-207.65,0.00011787,2]
[336060284,1724683859481,-563.27633277,0.00012608,2]
[336060285,1724683859491,-500.0,0.00012608,2]
[336060286,1724683859503,-500.0,0.00012608,2]
[336060287,1724683859513,-500.0,0.00012608,2]
[336060288,1724683859523,-709.66,0.00012608,2]
[336060289,1724683859533,-500.0,0.00012608,2]
[336060290,1724683859543,-500.0,0.00012608,2]
[336060291,1724683859553,-568.45,0.00012608,2]
[336060292,1724683859563,-517.46,0.00012608,2]
[336060293,1724683859573,-500.0,0.00012608,2]
[336060294,1724683859583,-500.0,0.00012608,2]
[336060295,1724683859594,-1084.83,0.00012608,2]
[336060296,1724683859603,-500.0,0.00012608,2]
[336060297,1724683859613,-622.4,0.00012608,2]
[336060298,1724683859623,-569.51,0.00012608,2]
[336060299,1724683859633,-500.0,0.00012608,2]
[336060300,1724683859643,-500.0,0.00012608,2]
[336060301,1724683859653,-509.01,0.00012608,2]
[336060302,1724683859662,-500.0,0.00012608,2]
[336060303,1724683859672,-500.0,0.00012608,2]
[336060304,1724683859682,-568.93,0.00012608,2]
[336060305,1724683859692,-500.0,0.00012608,2]
[336060306,1724683859706,-618.11,0.00012608,2]
[336060307,1724683859716,-19806.16,0.00012608,2]
[336060308,1724683859726,-1814.86,0.00012608,2]
[336060309,1724683859737,-500.0,0.00012608,2]
[336060310,1724683859747,-500.0,0.00012608,2]
[336060311,1724683859757,-500.0,0.00012608,2]
[336060312,1724683859768,-983.96,0.00012608,2]
[336060313,1724683859778,-500.0,0.00012608,2]
[336060314,1724683859788,-500.0,0.00012608,2]
[336060315,1724683859798,-599.86,0.00012608,2]
[336060316,1724683859807,-1059.29,0.00012608,2]
[336060317,1724683859817,-500.0,0.00012608,2]
[336060318,1724683859827,-576.28,0.00012608,2]
[336060319,1724683859837,-849.16,0.00012608,2]
[336060320,1724683859847,-500.0,0.00012608,2]
[336060321,1724683859857,-606.34,0.00012608,2]
[336060322,1724683859866,-1624.39,0.00012608,2]
[336060323,1724683859876,-500.0,0.00012608,2]
[336060324,1724683859886,-500.0,0.00012608,2]
[336060325,1724683859896,-500.0,0.00012608,2]
[336060326,1724683859907,-500.0,0.00012608,2]
[336060327,1724683859916,-554.58,0.00012608,2]
[336060328,1724683859926,-500.0,0.00012608,2]
[336060329,1724683859936,-500.0,0.00012608,2]
[336060330,1724683859946,-508.32,0.00012608,2]
[336060331,1724683859955,-500.0,0.00012608,2]
[336060332,1724683859965,-500.0,0.00012608,2]
[336060333,1724683859974,-500.0,0.00012608,2]
[336060334,1724683859985,-500.0,0.00012608,2]
[336060335,1724683859995,-894.77,0.00012608,2]
[336060336,1724683860005,-500.0,0.00012608,2]
[336060337,1724683860015,-1402.27179678,0.00012608,2]
[336060338,1724683860413,-500.0,0.00011513,2]
[336060339,1724683860423,-500.0,0.00011514,2]
[336060340,1724683860433,-200.99,0.00011787,2]
[336060341,1724683860443,-500.0,0.00011788,2]
[336060342,1724683860453,-450.16806322,0.00011873,2]
[336060343,1724683860463,-509.942933,0.00012163,2]
[336060344,1724683860472,-509.942933,0.00012465,2]
[336060345,1724683860482,-120.32820322,0.00012608,2]
[336060346,1724683860492,-500.0,0.00012608,2]
[336060347,1724683860501,-628.81,0.00012608,2]
[336060348,1724683860512,-500.0,0.00012609,2]
[336060349,1724683860521,-932.36,0.00012609,2]
[336060350,1724683860531,-556.89,0.00012609,2]
[336060351,1724683860541,-500.0,0.00012609,2]
[336060352,1724683860550,-465.87153377,0.00012609,2]
[336060353,1724683860560,-151.0,0.00012609,2]
[336060354,1724683860570,-891.81,0.00012609,2]
[336060355,1724683860579,-991.31,0.00012609,2]
[336060356,1724683860589,-743.597292,0.00012609,2]
[336060357,1724683860599,-743.597292,0.00012609,2]
[336060358,1724683860609,-500.0,0.00012609,2]
[336060359,1724683860619,-500.0,0.00012609,2]
[336060360,1724683860628,-500.0,0.00012609,2]
[336060361,1724683860638,-151.0,0.00012609,2]
[336060362,1724683860648,-157.452646,0.00012609,2]
[336060363,1724683860657,-151.0,0.00012609,2]
[336060364,1724683860667,-590.57,0.00012609,2]
[336060365,1724683860676,-615.95,0.00012609,2]
[336060366,1724683860686,-500.0,0.00012609,2]
[336060367,1724683860696,-1376.595746,0.00012609,2]
[336060368,1724683860706,-493.624816,0.00012609,2]
[336060369,1724683860715,-1376.595746,0.00012609,2]
[336060370,1724683860724,-517.92,0.00012609,2]
[336060371,1724683860733,-493.624816,0.00012609,2]
[336060372,1724683860742,-151.0,0.00012609,2]
[336060373,1724683860752,-505.50013156,0.00012609,2]
[336060374,1724683860762,-151.0,0.00012609,2]
[336060375,1724683860772,-1228.249715,0.00012609,2]
[336060376,1724683860782,-1228.249715,0.00012609,2]
[336060377,1724683860791,-500.0,0.00012609,2]
[336060378,1724683860800,-156.222467,0.00012609,2]
[336060379,1724683860811,-156.222467,0.00012609,2]
[336060380,1724683860820,-877.96,0.00012609,2]
[336060381,1724683860830,-500.0,0.00012609,2]
[336060382,1724683860842,-1027.83,0.00012609,2]
[336060383,1724683860857,-679.07,0.00012609,2]
[336060384,1724683860868,-500.0,0.00012609,2]
[336060385,1724683860878,-500.0,0.00012609,2]
[336060386,1724683860888,-701.24,0.00012609,2]
[336060387,1724683860897,-618.92,0.00012609,2]
[336060388,1724683860907,-548.36,0.00012609,2]
[336060389,1724683860916,-639.75,0.00012609,2]
[336060390,1724683860926,-782.64,0.00012609,2]
[336060391,1724683860936,-500.0,0.00012609,2]
[336060392,1724683860946,-519.95,0.00012609,2]
[336060393,1724683860956,-1073.48,0.00012609,2]
[336060394,1724683860966,-1009.62,0.00012609,2]
[336060395,1724683860975,-666.09,0.00012609,2]
[336060396,1724683860985,-727.18,0.00012609,2]
[336060397,1724683860995,-500.0,0.00012609,2]
[336060398,1724683861005,-631.66,0.00012609,2]
[336060399,1724683861015,-1900.22,0.00012609,2]
[336060400,1724683861025,-1034.48,0.00012609,2]
[336060401,1724683861034,-515.91,0.00012609,2]
[336060402,1724683861044,-500.0,0.00012609,2]
[336060403,1724683861054,-500.0,0.00012609,2]
[336060404,1724683861064,-500.0,0.00012609,2]
[336060405,1724683861074,-500.0,0.00012609,2]
[336060406,1724683861083,-634.62,0.00012609,2]
[336060407,1724683861103,-660.66,0.00012609,2]
[336060408,1724683861113,-500.0,0.00012609,2]
[336060409,1724683861124,-880.6,0.00012609,2]
[336060410,1724683861134,-500.0,0.00012609,2]
[336060411,1724683861145,-651.58,0.00012609,2]
[336060412,1724683861159,-500.0,0.00012609,2]
[336060413,1724683861168,-1051.23,0.00012609,2]
[336060414,1724683861178,-500.0,0.00012609,2]
[336060415,1724683861188,-500.0,0.00012609,2]
[336060416,1724683861199,-571.37,0.00012609,2]
[336060417,1724683861209,-500.0,0.00012609,2]
[336060418,1724683861219,-500.0,0.00012609,2]
[336060419,1724683861229,-500.0,0.00012609,2]
[336060420,1724683861240,-1259.84,0.00012609,2]
[336060421,1724683861250,-1265.69,0.00012609,2]
[336060422,1724683861260,-500.0,0.00012609,2]
[336060423,1724683861270,-603.95,0.00012609,2]
[336060424,1724683861280,-500.0,0.00012609,2]
[336060425,1724683861289,-544.43,0.00012609,2]
[336060426,1724683861299,-500.0,0.00012609,2]
[336060427,1724683861309,-901.68,0.00012609,2]
[336060428,1724683861318,-500.0,0.00012609,2]
[336060429,1724683861328,-823.22,0.00012609,2]
[336060430,1724683861338,-2656.92,0.00012609,2]
[336060431,1724683861360,-151.0,0.0001261,2]
[336060432,1724683861371,-151.0,0.0001261,2]
[336060433,1724683861381,-384.029925,0.0001261,2]
[336060434,1724683861391,-151.0,0.0001261,2]
[336060435,1724683861400,-384.029925,0.0001261,2]
[336060436,1724683861410,-151.0,0.0001261,2]
[336060437,1724683861420,-151.0,0.0001261,2]
[336060438,1724683861429,-3013.324954,0.0001261,2]
[336060439,1724683861439,-3013.324954,0.0001261,2]
[336060440,1724683861449,-151.0,0.0001261,2]
[336060441,1724683861459,-209.669471,0.0001261,2]
[336060442,1724683861468,-209.669471,0.0001261,2]
[336060443,1724683861478,-151.0,0.0001261,2]
[336060444,1724683861487,-151.0,0.0001261,2]
[336060445,1724683861497,-500.0,0.0001261,2]
[336060446,1724683861506,-168.036052,0.0001261,2]
[336060447,1724683861516,-168.036052,0.0001261,2]
[336060448,1724683861525,-563.68,0.0001261,2]
[336060449,1724683861535,-722.17,0.0001261,2]
[336060450,1724683861545,-810.1,0.0001261,2]
[336060451,1724683861556,-616.92,0.0001261,2]
[336060452,1724683861566,-500.0,0.0001261,2]
[336060453,1724683861575,-725.16,0.0001261,2]
[336060454,1724683861585,-500.0,0.0001261,2]
[336060455,1724683861599,-518.36395015,0.0001261,2]